Cogmind - Beta 16 @@@ ROGUE MODE // 2026.01.28 @ 16:29:26 Player: Wulphy Result: Escaped! Performance ------------- Evolutions (9) 4500 Regions Visited (29) 5800 Robots Destroyed (315) 1575 Value Destroyed (14364) 14364 Prototype IDs (94) 1880 Alien Tech Used (2) 400 Bonus (10647) 10647 TOTAL SCORE: 39166 Bonus ------- High Alert Combat Kills 1261 Follower Combat Kills 1596 Aligned with FarCom 300 Destroyed Z-Imprinter 1000 Triggered Deep Caves Wall 500 Exposed GOLEM Chamber 500 Met Zhirov 300 Met Warlord at Base 500 MAIN.C Attacked Warlord 500 Warlord Defense Kills 912 Built Enhanced Grunts 300 Met R17 at Cetus 500 Met R17 at Research 2000 Win 3000 Friendly Fire -2522 Cogmind --------- Core Integrity 1561/1600 Matter 123/300 Energy 2556/4200 System Corruption 9% Temperature Cool (3) Movement Walking (150) Ox1 Location To Epsilon Eridani Parts ------- > --- POWER (2) -------- Assembled Flux Generator > --- PROPULSION (4) --- Improved Thunder Leg Assembled Alloy Leg Assembled Alloy Leg Centrium Leg > --- UTILITY (17) ----- Assembled Nanovents Assembled Nanovents Assembled Nanovents Assembled Nanovents High-capacity Storage Unit Zionite Biocell Assembled Biocell Array Assembled Biocell Array Superbattery Assembled Suspension Frame Assembled Metafiber Network Assembled Combat Suite Assembled Alloy Armor Assembled Alloy Armor Assembled Alloy Armor GOLEM Unit > --- WEAPON (3) ------- Assembled Focal Cannon Assembled Focal Cannon Assembled Focal Cannon > --- INVENTORY (20) --- Fusion Reactor Quantum Reactor Centrium Leg Centrium Leg Zionite Biocell (600) Improved Matter Compressor (300) Improved Matter Compressor (42) Surveybot 24 Scanner Skeleton Box Long-range Tractor Beam GOLEM Unit Transdimensional Reconstructor Vortex Cannon (26) Gamma Bomb Array Fusion Bomb Launcher Peak State ------------ > --- POWER ------------ Assembled Flux Generator > --- PROPULSION ------- Improved Thunder Leg Assembled Alloy Leg Assembled Alloy Leg Centrium Leg > --- UTILITY ---------- Assembled Nanovents Assembled Nanovents Assembled Nanovents Assembled Nanovents High-capacity Storage Unit Assembled Biocell Array Assembled Biocell Array Superbattery Assembled Suspension Frame Assembled Metafiber Network Assembled Combat Suite Assembled Alloy Armor Assembled Alloy Armor Assembled Alloy Armor Assembled Alloy Armor GOLEM Unit > --- WEAPON ----------- Assembled Focal Cannon Assembled Focal Cannon Gamma Bomb Array > --- INVENTORY -------- Fusion Reactor Quantum Reactor Centrium Leg Centrium Leg Zionite Biocell Zionite Biocell Zionite Biocell Improved Matter Compressor Improved Matter Compressor Surveybot 24 Scanner Skeleton Box Long-range Tractor Beam GOLEM Unit Transdimensional Reconstructor Vortex Cannon Vortex Cannon Fusion Bomb Launcher [Rating: 235] Favorites ----------- Power Assembled Flux Generator Engine Reinforced Ion Engine Reactor Assembled Flux Generator Propulsion Assembled Alloy Leg Treads Light Treads Leg Assembled Alloy Leg Wheel Wheel Hover Unit Cooled Gravmag System Utility Assembled Alloy Armor Device GOLEM Unit Storage Assembled Biocell Array Processor Experimental Armor Integrity Analyzer Hackware Ghost Barrier Protection Assembled Alloy Armor Weapon Assembled Focal Cannon Energy Gun Heavy EM Pulse Gun Energy Cannon Assembled Focal Cannon Ballistic Gun Improved Assault Rifle Launcher Gamma Bomb Array Special Weapon Mining Laser Slashing Weapon Chainsword Build | -11 -10 -10 -10 -9 -8 -7 -7 -7 -7 -7 -6 -6 -6 -6 -6 -6 -5 -5 -5 -5 -4 -4 -4 -4 -4 -3 -3 -2 -1 ------- Run | Yrd Mat Min Exi Min Mat Fac Low Low Zio Dee Pro Fac Ext Cet Arc Hub Fac Upp Upp War Pro Fac Upp Upp Zhi Pro Res Res Acc Slots Evolved 18 | . . . . . 4 2 . . . . . 2 . . . . 2 . . . . 2 . . . . 2 2 2 Power 1 | . . . . . . . . . . . . 1 . . . . . . . . . . . . . . . . . Propulsion 1 | . . . . . . . . . . . . . . . . . 1 . . . . . . . . . . . . Utility 15 | . . . . . 3 2 . . . . . 1 . . . . 1 . . . . 2 . . . . 2 2 2 Weapon 1 | . . . . . 1 . . . . . . . . . . . . . . . . . . . . . . . . Parts Attached 159 | 7 8 4 2 4 28 9 1 . 4 25 2 2 11 5 . . 2 2 1 7 . 13 . . 3 3 6 7 3 Power 10 | 1 2 1 . . 1 . . . . 3 . . . . . . . . . 1 . 1 . . . . . . . Engine 6 | 1 2 1 . . 1 . . . . 1 . . . . . . . . . . . . . . . . . . . Core . | . . . . . . . . . . . . . . . . . . . . . . . . . . . . . . Reactor 4 | . . . . . . . . . . 2 . . . . . . . . . 1 . 1 . . . . . . . Propulsion 34 | 2 2 1 . 1 6 2 . . . 3 1 . 3 1 . . . 2 . 1 . 1 . . 2 2 2 2 . Treads 5 | 2 . . . . . . . . . 2 . . . . . . . 1 . . . . . . . . . . . Leg 9 | . . . . . . . . . . . . . . . . . . 1 . 1 . 1 . . . 2 2 2 . Wheel 18 | . 2 1 . 1 6 2 . . . 1 1 . 3 1 . . . . . . . . . . . . . . . Hover 2 | . . . . . . . . . . . . . . . . . . . . . . . . . 2 . . . . Flight . | . . . . . . . . . . . . . . . . . . . . . . . . . . . . . . Utility 79 | 2 2 . 2 1 11 3 1 . 4 14 1 2 8 4 . . 2 . 1 3 . 7 . . 1 1 4 4 1 Device 38 | 1 . . 1 1 3 2 1 . 3 4 1 . 3 . . . 2 . 1 2 . 5 . . 1 1 3 3 . Storage 13 | 1 1 . 1 . 2 . . . . 2 . 1 3 1 . . . . . . . . . . . . 1 . . Processor 7 | . . . . . 1 . . . 1 . . 1 1 . . . . . . 1 . . . . . . . 1 1 Hackware 1 | . . . . . . . . . . . . . . . . . . . . . . 1 . . . . . . . Protection 20 | . 1 . . . 5 1 . . . 8 . . 1 3 . . . . . . . 1 . . . . . . . Artifact . | . . . . . . . . . . . . . . . . . . . . . . . . . . . . . . Weapon 36 | 2 2 2 . 2 10 4 . . . 5 . . . . . . . . . 2 . 4 . . . . . 1 2 Energy Gun 14 | 2 2 1 . 1 2 . . . . 3 . . . . . . . . . 1 . 2 . . . . . . . Energy Cannon 8 | . . . . . 2 4 . . . 1 . . . . . . . . . 1 . . . . . . . . . Ballistic Gun 2 | . . . . . 2 . . . . . . . . . . . . . . . . . . . . . . . . Ballistic Cannon . | . . . . . . . . . . . . . . . . . . . . . . . . . . . . . . Launcher 8 | . . . . 1 2 . . . . . . . . . . . . . . . . 2 . . . . . 1 2 Special Weapon 2 | . . 1 . . 1 . . . . . . . . . . . . . . . . . . . . . . . . Impact Weapon . | . . . . . . . . . . . . . . . . . . . . . . . . . . . . . . Slashing Weapon 2 | . . . . . 1 . . . . 1 . . . . . . . . . . . . . . . . . . . Piercing Weapon . | . . . . . . . . . . . . . . . . . . . . . . . . . . . . . . Special Melee Weapon . | . . . . . . . . . . . . . . . . . . . . . . . . . . . . . . Unidentified Prototypes 32 | . . . . . 4 . . . 1 10 . . 1 1 . . . . . 6 . 4 . . 2 . . 3 . Corrupted Parts 3 | . . . . 2 . . . . . . . . . . . . . . . 1 . . . . . . . . . System Corruption 13 | . . . . 8 . . . . . . . . . . . . . . . 5 . . . . . . . . . Parts Lost 51 | . . 2 . 2 5 . . . . 5 2 . . 1 . . . . . . . 24 . . . . 1 2 7 Power 2 | . . . . . . . . . . . . . . . . . . . . . . 2 . . . . . . . Propulsion 13 | . . 1 . 1 2 . . . . 1 2 . . 1 . . . . . . . 4 . . . . . 1 . Utility 21 | . . . . . . . . . . 4 . . . . . . . . . . . 11 . . . . 1 . 5 Weapon 15 | . . 1 . 1 3 . . . . . . . . . . . . . . . . 7 . . . . . 1 2 Highest Loss Streak 7 | . . 1 . 2 1 . . . . 2 2 . . 1 . . . . . . . 7 . . . . 1 2 2 To Critical Strikes 1 | . . . . . . . . . . . . . . . . . . . . . . 1 . . . . . . . Average Backups 20 | 3 17 23 24 24 24 24 25 25 24 23 20 20 19 17 17 17 16 17 17 16 18 17 12 14 17 18 18 18 17 Power 1 | . 1 2 4 4 4 4 4 4 4 3 1 1 1 1 1 1 1 1 1 . . . . 1 1 2 1 1 1 Propulsion 1 | 1 3 3 4 3 2 2 3 3 3 2 . . . . . . . . . . . . . . . . 1 1 2 Utility 11 | . 6 11 9 9 9 9 9 8 8 12 16 17 15 13 14 14 14 15 14 12 10 9 8 9 11 11 10 10 8 Weapon 4 | . 4 4 6 6 7 7 8 8 8 4 . . 1 1 1 1 . . . 1 6 5 2 2 2 2 2 4 3 Tool/Special . | . . . . . . . . . . . . . . . . . . . . . . . . . . . . . . Unused Backups 76 | . 5 1 2 3 18 6 . . 1 11 1 . 3 . . . . . 1 3 . 1 . . . . 6 3 11 Power 14 | . 1 . . 1 2 1 . . . 5 . . . . . . . . . 1 . . . . . . 1 . 2 Propulsion 6 | . 1 . . . 1 . . . . . . . . . . . . . . . . . . . . . 1 1 2 Utility 28 | . 2 1 1 1 5 1 . . 1 1 1 . 3 . . . . . 1 1 . . . . . . 2 2 5 Weapon 25 | . 1 . . 1 10 4 . . . 5 . . . . . . . . . 1 . 1 . . . . 1 . 1 Tool/Special 3 | . . . 1 . . . . . . . . . . . . . . . . . . . . . . . 1 . 1 Average Slot Usage (%) 91 | . 99 99 100 99 98 95 100 100 100 95 91 84 84 84 86 86 81 87 88 87 88 84 80 80 73 89 89 90 90 Engine 3 | . 14 14 14 14 9 7 7 7 7 5 . . . . . . . . . . . . . . . . . . . Reactor 3 | . . . . . . . . . . 1 7 5 5 6 6 6 5 5 5 5 5 4 5 5 5 4 4 4 3 Leg 6 | . . . . . . . . . . . . . . 7 13 13 11 14 11 14 17 14 10 10 10 15 18 16 15 Wheel 8 | . 22 27 28 27 17 15 15 15 15 13 14 13 12 4 . . . . . . . . . . . . . . . Device 17 | . 13 14 14 4 8 11 15 15 15 10 16 13 13 15 13 13 19 23 23 19 17 25 25 25 24 24 30 26 27 Storage 13 | . 14 14 14 14 10 15 15 15 15 14 15 18 20 13 13 13 11 11 11 11 11 10 10 10 10 10 9 14 15 Processor 3 | . . . . . 8 7 7 7 7 5 . . 2 . . . . . . 2 5 5 5 5 5 5 4 4 5 Protection 11 | . . . . 9 16 13 15 15 15 18 13 12 7 17 20 20 14 11 11 10 11 8 5 5 5 5 4 7 9 Energy Gun 3 | . 27 27 28 27 14 5 . . . . . . . . . . . . . . . . . . . . . . . Energy Cannon 14 | . . . . . 10 12 20 23 15 20 22 19 19 20 20 20 17 17 17 16 17 12 15 15 3 14 13 11 9 Peak Build Rating 235 | 7 11 12 14 18 40 45 45 45 54 114 105 118 122 136 136 136 147 143 144 156 156 176 158 159 175 177 194 212 235 Average Rating 107 | 5 10 11 13 14 31 39 45 44 45 66 97 112 110 125 136 136 140 141 140 148 155 162 157 158 147 171 190 206 222 On Entrance 101 | . 7 11 12 14 15 34 45 45 45 45 97 98 112 110 136 136 136 138 139 139 156 156 157 158 159 175 174 193 205 Avg Prop Armor Cover (%) 3 | . . . . . . . . . . . . . . . . . . 2 4 4 . . . . 5 1 3 . . Naked Turns . | . . . . . . . . . . . . . . . . . . . . . . . . . . . . . . Heaviest Build 184 | 12 92 94 94 96 125 146 146 146 146 149 149 184 180 146 146 146 149 143 145 145 140 142 137 136 138 144 148 148 157 Greatest Support 138 | 40 40 26 26 26 32 20 20 20 20 20 20 20 32 60 60 60 80 80 80 105 85 105 60 60 60 88 136 138 138 Greatest Overweight (x) 17 | . 3 5 3 4 6 7 7 7 7 14 7 9 17 4 2 2 2 1 1 1 1 2 4 2 2 2 1 1 1 Average Overweight (x) 3 | . 2 3 3 3 5 6 7 7 6 6 7 8 6 3 2 2 1 1 1 1 1 1 2 2 1 1 1 1 . Largest Inventory Capacity 25 | 8 25 25 25 25 25 25 25 25 25 25 25 25 25 20 20 20 20 20 20 20 20 20 20 20 20 20 20 20 20 Average Capacity 22 | 6 21 25 25 25 25 25 25 25 25 25 25 25 23 20 20 20 20 20 20 20 20 20 20 20 20 20 20 20 20 Most Carried 25 | 6 25 25 25 25 25 25 25 25 25 25 25 25 25 20 20 20 20 20 20 20 20 20 14 16 20 20 20 20 20 Average Carried 21 | 3 17 23 24 24 24 24 25 24 24 24 24 24 22 19 20 20 19 19 19 19 20 18 13 15 18 19 19 19 18 Final Capacity 25 | 8 25 25 25 25 25 25 25 25 25 25 25 25 20 20 20 20 20 20 20 20 20 20 20 20 20 20 20 20 20 Final Carried 25 | 6 25 25 25 23 25 25 25 25 25 25 24 24 20 20 20 20 20 20 19 20 20 12 14 16 20 20 20 20 16 Class Distribution -------------------- 28% | Trapper-Golem 16% | Golem 15% | Hacker-Golem 10% | Mutant 8% | Trapper-Tank 7% | Trapper-Mutant 6% | Scavenger-Tank 3% | Commander-Golem Dominant Class ---------------- Mutant | -10/Materials Mutant | -10/Mines Mutant | -10/Exiles Mutant | -9/Mines Scavenger-Tank | -8/Materials Scavenger-Mutant | -7/Factory Trapper-Tank | -7/Lower Caves Trapper-Tank | -7/Lower Caves Trapper-Mutant | -7/Zion Trapper-Tank | -7/Deep Caves Trapper-Golem | -6/Proximity Caves Trapper-Golem | -6/Factory Trapper-Golem | -6/Extension Commander-Golem | -6/Cetus Trapper-Golem | -6/Archives Trapper-Golem | -6/Hub_04(d) Trapper-Golem | -5/Factory Trapper-Golem | -5/Upper Caves Trapper-Golem | -5/Upper Caves Trapper-Golem | -5/Warlord Golem | -4/Proximity Caves Golem | -4/Factory Hacker-Golem | -4/Upper Caves Hacker-Golem | -4/Upper Caves Hacker-Golem | -4/Zhirov Hacker-Golem | -3/Proximity Caves Hacker-Golem | -3/Research Hacker-Golem | -2/Research Golem | -1/Access Resources | -11 -10 -10 -10 -9 -8 -7 -7 -7 -7 -7 -6 -6 -6 -6 -6 -6 -5 -5 -5 -5 -4 -4 -4 -4 -4 -3 -3 -2 -1 ----------- Run | Yrd Mat Min Exi Min Mat Fac Low Low Zio Dee Pro Fac Ext Cet Arc Hub Fac Upp Upp War Pro Fac Upp Upp Zhi Pro Res Res Acc Matter Collected 5351 | 247 587 74 . 78 583 147 70 . 60 788 184 43 180 65 . . 40 20 34 125 . 372 48 69 . 279 328 206 724 Remotely . | . . . . . . . . . . . . . . . . . . . . . . . . . . . . . . Salvage Created 15734 | 60 689 35 . 147 2055 155 209 230 . 1027 939 139 1372 388 156 . 104 598 201 387 196 2993 . 275 . 326 179 420 2454 Parts 726 | 5 44 . . 7 128 8 7 9 . 19 40 10 55 15 2 . 4 27 5 11 9 161 . 15 . 21 5 20 99 Haulers Intercepted 11 | . 2 . . . 6 . . . . . . . . . . . . . . . . 2 . . . . . . 1 Recyclers Shooed 6 | 1 . . . . . . . . . . . . . . . . . . . . . 2 . . . . . . 3 Parts Field Recycled . | . . . . . . . . . . . . . . . . . . . . . . . . . . . . . . Retrieved Matter . | . . . . . . . . . . . . . . . . . . . . . . . . . . . . . . Parts Self-Destructed 119 | . . . . . . . 7 3 . . 40 . . . . . . 16 5 . 9 . . 14 . 25 . . . Prevented 6 | . . . . . . . . 6 . . . . . . . . . . . . . . . . . . . . . Parts Restored . | . . . . . . . . . . . . . . . . . . . . . . . . . . . . . . Kills | -11 -10 -10 -10 -9 -8 -7 -7 -7 -7 -7 -6 -6 -6 -6 -6 -6 -5 -5 -5 -5 -4 -4 -4 -4 -4 -3 -3 -2 -1 ------- Run | Yrd Mat Min Exi Min Mat Fac Low Low Zio Dee Pro Fac Ext Cet Arc Hub Fac Upp Upp War Pro Fac Upp Upp Zhi Pro Res Res Acc Combat Hostiles Destroyed 293 | . 12 2 . 1 43 2 3 4 . 49 18 5 15 4 2 . 1 10 3 7 6 54 . 6 . 8 3 10 25 Guns 32 | . 10 2 . 1 9 1 . . . . . . . . . . . . . . . 9 . . . . . . . Cannons 156 | . . . . . 13 1 2 2 . 7 16 3 15 4 2 . 1 10 3 7 6 36 . 6 . 8 2 4 8 AOE 88 | . 2 . . . 20 . . . . 37 2 2 . . . . . . . . . 9 . . . . . 6 10 Classes Destroyed 25 | 2 6 1 . 1 4 . 1 . . 3 3 . 1 . . . . . . 1 . . . . . 1 1 . . Worker 11 | . 1 . . . 4 . . . . . . . . . . . . . . . . 6 . . . . . . . Builder 15 | . 2 . . . 1 . . . . . . . 1 . . . . . . . . 8 . . . . . . 3 Tunneler 6 | 1 1 . . . 1 1 . . . . . . . . . . . . . . . 2 . . . . . . . Hauler 11 | . 2 . . . 6 . . . . . . . . . . . . . . . . 2 . . . . . . 1 Recycler 9 | 1 . . . . 2 . . . . . . . 2 . . . . . . . . 1 . . . . . . 3 Minesweeper 2 | . . . . . . . 1 . . . 1 . . . . . . . . . . . . . . . . . . Operator 3 | . . . . . 1 . . . . . . . 1 . . . 1 . . . . . . . . . . . . Drone 2 | . . . . . . . . . . . . . . . . . . . . . . . . . . 2 . . . Watcher 5 | . 1 . . . 2 . . . . . . . 1 . . . . . . . . 1 . . . . . . . Swarmer 56 | . 3 . . . 16 . . . . . 4 3 . . . . . . . . 5 14 . 4 . . . 5 2 Grunt 77 | . 9 . . 4 16 . 2 4 . . 5 . 3 . . . . 3 1 1 . 15 . . . 3 . . 11 Brawler 5 | . . . . . 1 . . . . . . . 1 . . . . . . 2 . . . . . . . . 1 Duelist 3 | . . . . . 1 . 1 . . . . . . . . . . 1 . . . . . . . . . . . Sentry 32 | . . . . . 9 2 . . . . 1 . 9 . 2 . 1 . 1 . 1 2 . . . . 2 1 1 Demolisher 1 | . . . . . . . . . . . . . . . . . . . . 1 . . . . . . . . . Specialist 7 | . . . . . . . . . . . 3 . . . . . . . . . . 4 . . . . . . . Hunter 14 | . . . . . . . . . . . 4 . . . . . . . . 3 . 4 . . . . . . 3 Programmer 33 | . . . . . . . . . . . 1 2 1 . . . . 2 1 . . 15 . 1 . 1 . 2 7 Behemoth 2 | . . . . . . . . . . . . . 1 . . . . . . . . . . 1 . . . . . Cetus Guard 4 | . . . . . . . . . . . . . . 4 . . . . . . . . . . . . . . . Striker 3 | . . . . . . . . . . . . . . . . . . . . . . . . . . . 1 2 . Zionite 1 | . . . . 1 . . . . . . . . . . . . . . . . . . . . . . . . . Z-Light 4 | . . . . . . . . . . 4 . . . . . . . . . . . . . . . . . . . Assembler 2 | . . . . . . . . . . 2 . . . . . . . . . . . . . . . . . . . Assembled 45 | . . 2 . . . . . . . 41 . . . . . . . . . . . . . . . 2 . . . Golem 4 | . . . . . . . . . . 4 . . . . . . . . . . . . . . . . . . . Thug 1 | . . . . . . . . . . . . . . . . . . 1 . . . . . . . . . . . Savage 3 | . . . . . . . . . . . . . . . . . . 3 . . . . . . . . . . . Best Kill Streak 41 | 2 5 1 . 1 7 1 2 4 . 41 6 3 4 2 2 . 1 3 1 4 5 20 . 4 . 4 1 9 6 Combat Bots Only 39 | . 3 1 . 1 6 1 2 4 . 39 6 3 4 2 2 . 1 3 1 4 5 13 . 4 . 4 1 9 6 Max Kills in Single Turn 11 | 1 3 1 . 4 4 1 1 1 . 11 2 2 2 1 1 . 1 1 1 1 2 4 . 1 . 1 1 3 2 Gunslinging 1 | . . . . . . . . . . . . . . . . . . . . . . 1 . . . . . . . Exploded 11 | . 2 . . . 4 . . . . 11 2 2 . . . . . . . . . 3 . . . . . 3 2 Melee . | . . . . . . . . . . . . . . . . . . . . . . . . . . . . . . Uniques/NPCs Destroyed 2 | . . . . . . . . . . 1 . . . 1 . . . . . . . . . . . . . . . Z-Imprinter (-7/Deep Caves) A7 (-6/Cetus) Combat | -11 -10 -10 -10 -9 -8 -7 -7 -7 -7 -7 -6 -6 -6 -6 -6 -6 -5 -5 -5 -5 -4 -4 -4 -4 -4 -3 -3 -2 -1 -------- Run | Yrd Mat Min Exi Min Mat Fac Low Low Zio Dee Pro Fac Ext Cet Arc Hub Fac Upp Upp War Pro Fac Upp Upp Zhi Pro Res Res Acc Hostile Shots Fired 1340 | . 31 11 . 1 83 30 2 11 . 74 74 12 150 27 . . 3 10 12 12 41 494 . 28 . 46 12 37 139 Missed 514 | . 5 5 . . 34 16 1 4 . 20 24 6 65 8 . . 1 7 4 2 16 178 . 14 . 21 6 19 58 Hits 826 | . 26 6 . 1 49 14 1 7 . 54 50 6 85 19 . . 2 3 8 10 25 316 . 14 . 25 6 18 81 Melee 6 | . . 1 . . . . . . . 2 . . . . . . 2 . . . . . . . . . . 1 . Projectile 820 | . 26 5 . 1 49 14 1 7 . 52 50 6 85 19 . . . 3 8 10 25 316 . 14 . 25 6 17 81 AOE 4 | . . . . . . . . . . . . . . . . . . . . 3 . 1 . . . . . . . Critical Strikes 39 | . . . . . . . . 1 . 1 1 1 1 5 . . . 1 . . . 20 . 2 . 1 . 2 3 Part Disruptions 6 | . . . . . . . . . . . 1 . . . . . . . . 2 . 1 . . . . . . 2 Damage Taken 13982 | . 333 100 . 109 716 89 14 116 . 1262 729 73 644 344 22 . 59 105 137 270 329 5029 . 325 . 413 150 611 2003 Core 1200 | . 106 . . 11 115 . 14 . . 30 108 . 128 11 . . 25 . . 41 20 453 . 54 . . 25 20 39 Absorbed by Shields 161 | . . . . . . . . . . . . . 17 121 . . . . . . . . . . . . 23 . . Redirected to Shielding 365 | . . . . . . . . . . 365 . . . . . . . . . . . . . . . . . . . Ignored by Resistances 2185 | . . . . . 23 18 . . . 25 151 18 141 94 5 . 11 21 28 55 74 810 . 65 . 90 37 121 398 Regen/Repaired (Parts) 3 | . . . . . . . . . 3 . . . . . . . . . . . . . . . . . . . . Core Remaining (%) 83 | 100 . . . 53 79 . . . . . 78 . . . . 83 . . . . 91 . . . . 55 98 98 97 Volleys Fired 696 | 5 34 8 . 1 81 4 5 6 . 36 38 12 41 17 2 2 6 17 14 13 8 142 3 11 . 40 69 15 66 Largest 3 | 2 2 2 . 2 3 3 3 3 . 3 3 3 3 3 3 2 3 3 3 3 3 3 1 3 . 3 3 3 3 Hottest 207 | 90 90 100 . 90 164 207 207 207 . 207 75 75 75 75 75 50 75 75 75 75 75 105 25 75 . 75 75 75 100 Shots Fired 1416 | 10 68 14 . 3 184 10 13 18 . 87 86 23 106 51 6 3 11 51 29 37 24 260 4 31 . 72 81 35 99 Gun 216 | 10 68 12 . 2 86 2 . . . . . . . . . . . . . . . 36 . . . . . . . Cannon 1121 | . . . . . 80 8 13 18 . 78 84 22 106 51 6 3 11 51 29 37 24 218 4 31 . 72 81 33 61 Launcher 73 | . . . . 1 14 . . . . 9 2 1 . . . . . . . . . 6 . . . . . 2 38 Special 6 | . . 2 . . 4 . . . . . . . . . . . . . . . . . . . . . . . . Kinetic . | . . . . . . . . . . . . . . . . . . . . . . . . . . . . . . Thermal 922 | 10 . 2 . . 4 . . . . 2 84 22 106 51 6 3 11 51 29 37 24 208 4 31 . 72 81 33 51 Explosive 40 | . . . . 1 14 . . . . 9 2 1 . . . . . . . . . 6 . . . . . 2 5 Electromagnetic 398 | . 68 12 . 2 166 10 13 18 . 76 . . . . . . . . . . . . . . . . . . 33 Entropic 56 | . . . . . . . . . . . . . . . . . . . . . . 46 . . . . . . 10 Robot Hit Streak 28 | 7 6 6 . 4 11 6 3 5 . 12 16 8 19 23 7 . 11 14 8 17 8 28 . 12 . 7 7 11 17 Robot Miss Streak 7 | 2 4 2 . . 5 1 1 2 . 4 2 2 2 1 . . . 2 4 1 2 2 . 1 . 4 3 3 7 Penetration Max . | . . . . . . . . . . . . . . . . . . . . . . . . . . . . . . Secondary Targets 1 | . . . . . . . . . . . . . . . . . . . . . . 1 . . . . . . . Max Gunslinging Chain 1 | . . . . . . . . . . . . . . . . . . . . . . 1 . . . . . . . Shots Hit Robots 820 | 8 37 6 . 3 126 8 8 12 . 57 45 10 77 40 5 . 4 31 13 28 12 159 . 23 . 24 7 23 54 Core Hits 552 | 3 24 4 . 5 88 7 3 4 . 79 22 6 27 14 4 . 3 12 2 10 6 101 . 8 . 11 4 17 88 Critical Kills . | . . . . . . . . . . . . . . . . . . . . . . . . . . . . . . Critical Parts Destroyed . | . . . . . . . . . . . . . . . . . . . . . . . . . . . . . . Critical Strikes 5 | . 1 . . . 2 . . . . 1 . . . . . . . . . . . 1 . . . . . . . Corrupt 4 | . 1 . . . 2 . . . . 1 . . . . . . . . . . . . . . . . . . . Sunder 1 | . . . . . . . . . . . . . . . . . . . . . . 1 . . . . . . . Melee Attacks 17 | . . . . . 6 1 2 . 1 7 . . . . . . . . . . . . . . . . . . . Impact . | . . . . . . . . . . . . . . . . . . . . . . . . . . . . . . Slashing 17 | . . . . . 6 1 2 . 1 7 . . . . . . . . . . . . . . . . . . . Piercing . | . . . . . . . . . . . . . . . . . . . . . . . . . . . . . . Sneak Attacks 6 | . . . . . 3 1 2 . . . . . . . . . . . . . . . . . . . . . . Combat Hostiles . | . . . . . . . . . . . . . . . . . . . . . . . . . . . . . . Follow-up Attacks . | . . . . . . . . . . . . . . . . . . . . . . . . . . . . . . Damage Inflicted 45403 | 91 756 82 . 292 4787 224 308 366 . 4518 2501 626 3862 1999 190 . 257 1650 733 1493 693 10631 . 1090 . 1144 350 1856 4904 Guns 3209 | 91 628 82 . 31 1063 27 . . . . . . . . . . . . . . . 1287 . . . . . . . Cannons 29321 | . . . . . 1253 117 161 366 . 1145 2133 484 3862 1999 190 . 257 1650 733 1493 693 7048 . 1090 . 1144 350 1172 1981 Explosions 12281 | . 121 . . 261 2252 . . . . 3234 368 142 . . . . . . . . . 2296 . . . . . 684 2923 Melee 585 | . . . . . 219 80 147 . . 139 . . . . . . . . . . . . . . . . . . . Ramming 7 | . 7 . . . . . . . . . . . . . . . . . . . . . . . . . . . . Kinetic . | . . . . . . . . . . . . . . . . . . . . . . . . . . . . . . Thermal 26462 | 91 121 . . . 612 . . . . . 2133 484 3862 1999 190 . 257 1650 733 1493 693 6724 . 1090 . 1144 350 1172 1664 Explosive 9205 | . . . . 261 1640 . . . . 3234 368 142 . . . . . . . . . 2122 . . . . . 684 754 Electromagnetic 6795 | . 628 82 . 31 2316 144 161 366 . 1145 . . . . . . . . . . . . . . . . . . 1922 Impact . | . . . . . . . . . . . . . . . . . . . . . . . . . . . . . . Slashing 585 | . . . . . 219 80 147 . . 139 . . . . . . . . . . . . . . . . . . . Piercing . | . . . . . . . . . . . . . . . . . . . . . . . . . . . . . . Entropic 2349 | . . . . . . . . . . . . . . . . . . . . . . 1785 . . . . . . 564 Highest Corruption 14 | . . . . 8 . . . . . 3 3 . . . . . . . 1 6 . 14 14 14 14 14 2 1 9 Average Corruption 6 | . . . . 7 . . . . . 3 3 . . . . . . . 1 1 . 4 14 14 14 14 2 1 2 Corruption Purged 5 | . . . . . . . . . . . . . . . . . . . . . . 5 . . . . . . . Corruption Blocked . | . . . . . . . . . . . . . . . . . . . . . . . . . . . . . . Effects 207 | . . . . . . . . . . 17 32 . . . . . . . 7 2 . 32 20 17 16 53 1 3 7 Message Errors 51 | . . . . . . . . . . 2 7 . . . . . . . 2 . . 7 7 3 4 18 . . 1 Matter Fused 54 | . . . . . . . . . . 3 10 . . . . . . . 2 1 . 6 4 6 5 15 . 1 1 Heat Flow Errors 25 | . . . . . . . . . . 4 3 . . . . . . . . . . 3 2 1 2 7 1 1 1 Energy Discharges 18 | . . . . . . . . . . 3 3 . . . . . . . . . . 2 2 . 1 6 . . 1 Parts Rejected 4 | . . . . . . . . . . . . . . . . . . . . . . 2 . . . 1 . . 1 Parts Fused 1 | . . . . . . . . . . . . . . . . . . . . . . 1 . . . . . . . Data Loss (minor) 27 | . . . . . . . . . . 2 7 . . . . . . . 2 . . 2 3 4 2 2 . 1 2 Data Loss (major) 9 | . . . . . . . . . . . 2 . . . . . . . . . . 4 . 1 2 . . . . Misfires 8 | . . . . . . . . . . 2 . . . . . . . . . . . . 1 2 . 3 . . . Alerts 5 | . . . . . . . . . . 1 . . . . . . . . . 1 . 1 1 . . 1 . . . Weapon Failures 5 | . . . . . . . . . . . . . . . . . . . 1 . . 4 . . . . . . . Overload Shots . | . . . . . . . . . . . . . . . . . . . . . . . . . . . . . . Overflow Damage 2134 | . . . . 27 209 . 76 . . 232 137 14 69 40 . . 46 62 191 104 28 639 . . . 118 . 57 85 Projectiles 1484 | . . . . . 43 . 9 . . 26 114 14 69 40 . . 46 62 191 104 28 500 . . . 118 . 35 85 Explosions 533 | . . . . 27 116 . . . . 206 23 . . . . . . . . . . 139 . . . . . 22 . Melee 117 | . . . . . 50 . 67 . . . . . . . . . . . . . . . . . . . . . . Knockbacks 1 | . 1 . . . . . . . . . . . . . . . . . . . . . . . . . . . . Impact 1 | . 1 . . . . . . . . . . . . . . . . . . . . . . . . . . . . Kinetic . | . . . . . . . . . . . . . . . . . . . . . . . . . . . . . . Secondary . | . . . . . . . . . . . . . . . . . . . . . . . . . . . . . . Self-Inflicted Damage 670 | . 41 . . 61 65 . . . . 104 32 . . . . . . . . . . 162 . . . . . 146 59 Shots 23 | . 1 . . 1 2 . . . . 4 2 . . . . . . . . . . 3 . . . . . 2 8 Rammed 2 | . 2 . . . . . . . . . . . . . . . . . . . . . . . . . . . . Targets Rammed 2 | . 2 . . . . . . . . . . . . . . . . . . . . . . . . . . . . Kicked . | . . . . . . . . . . . . . . . . . . . . . . . . . . . . . . Crushed . | . . . . . . . . . . . . . . . . . . . . . . . . . . . . . . Highest Temperature 363 | 120 363 100 . 48 225 186 120 193 . 313 218 . . . . . . 6 9 30 39 185 206 234 169 192 191 177 92 Average Temperature 68 | 53 93 38 . 30 57 77 58 101 . 103 92 . . . . . . 4 6 13 18 21 101 103 91 81 114 75 60 Received Heat Transfer 2526 | . 111 9 . 6 207 30 9 81 . 168 108 . 186 9 . . . 27 27 9 18 729 . 596 . 66 22 18 90 Effects 2 | . 1 . . . . . . . . 1 . . . . . . . . . . . . . . . . . . . Shutdowns 1 | . 1 . . . . . . . . . . . . . . . . . . . . . . . . . . . . Interference 1 | . . . . . . . . . . 1 . . . . . . . . . . . . . . . . . . . Siege Activations . | . . . . . . . . . . . . . . . . . . . . . . . . . . . . . . Martial Activations . | . . . . . . . . . . . . . . . . . . . . . . . . . . . . . . Shielding Activations . | . . . . . . . . . . . . . . . . . . . . . . . . . . . . . . Robots Disrupted . | . . . . . . . . . . . . . . . . . . . . . . . . . . . . . . Combat Hostiles . | . . . . . . . . . . . . . . . . . . . . . . . . . . . . . . Robots Corrupted 16 | . . . . . 1 . 1 2 . 5 . . . . . . . . . . . . . . . . . . 7 Combat Hostiles 16 | . . . . . 1 . 1 2 . 5 . . . . . . . . . . . . . . . . . . 7 Parts Fried 42 | . 2 . . . 12 . 2 7 . 3 . . . . . . . . . . . . . . . . . . 16 Impact Corruptions . | . . . . . . . . . . . . . . . . . . . . . . . . . . . . . . Robots Melted . | . . . . . . . . . . . . . . . . . . . . . . . . . . . . . . Combat Hostiles . | . . . . . . . . . . . . . . . . . . . . . . . . . . . . . . Parts Melted 17 | . . . . . 1 . . . . 1 1 . 6 . 1 . . . . 1 1 3 . 1 . 1 . . . Heat Transferred 14395 | 248 150 . . . 650 . . . . . 1175 250 2025 1100 125 . 125 775 325 700 325 3547 . 600 . 600 175 600 900 Parts Sabotaged . | . . . . . . . . . . . . . . . . . . . . . . . . . . . . . . Parts Stolen . | . . . . . . . . . . . . . . . . . . . . . . . . . . . . . . Parts Stripped . | . . . . . . . . . . . . . . . . . . . . . . . . . . . . . . Power Chain Reactions 19 | . 1 . . . 9 . . . . . . . . . . . . . . . . 3 . . . . . . 6 Alert | -11 -10 -10 -10 -9 -8 -7 -7 -7 -7 -7 -6 -6 -6 -6 -6 -6 -5 -5 -5 -5 -4 -4 -4 -4 -4 -3 -3 -2 -1 ------- Run | Yrd Mat Min Exi Min Mat Fac Low Low Zio Dee Pro Fac Ext Cet Arc Hub Fac Upp Upp War Pro Fac Upp Upp Zhi Pro Res Res Acc Maximum Alert Level 4 | . . . . . 3 2 . . . . . . 1 1 . 1 . . . . . 4 . . . . . 1 2 Low Security (%) 72 | 100 100 100 . 100 56 . . . . . . 100 83 88 100 78 100 . . . . 37 . . . . 100 77 80 Level 1 14 | . . . . . 23 78 . . . . . . 16 11 . 21 . . . . . 15 . . . . . 22 11 Level 2 5 | . . . . . 12 21 . . . . . . . . . . . . . . . 10 . . . . . . 7 Level 3 4 | . . . . . 7 . . . . . . . . . . . . . . . . 18 . . . . . . . Level 4 3 | . . . . . . . . . . . . . . . . . . . . . . 17 . . . . . . . Level 5 . | . . . . . . . . . . . . . . . . . . . . . . . . . . . . . . High Security . | . . . . . . . . . . . . . . . . . . . . . . . . . . . . . . Max Security . | . . . . . . . . . . . . . . . . . . . . . . . . . . . . . . Peak Influence 1328 | 5 130 39 . 110 1054 475 . . . . . 85 315 234 98 297 130 . . . . 1328 . . . . 150 248 549 Initial 475 | . . 39 . . 14 475 . . . . . . . 82 16 23 130 . . . . . . . . . 150 . 101 Average 180 | . 30 6 . 39 271 324 . . . . . 17 94 133 76 99 47 . . . . 494 . . . . 23 72 116 Influence Increases 9586 | 10 400 50 . 271 1742 81 75 90 . . 425 157 835 344 162 477 221 210 70 140 130 1959 . 150 . 110 300 312 865 Destroy 0b10 Robot/C 5460 | . 240 40 . 160 880 40 60 80 . . 360 100 460 160 80 200 100 140 60 140 120 1080 . 120 . 80 60 200 500 Destroy 0b10 Robot/NC 365 | 10 35 . . 5 85 5 5 . . . 5 . 35 10 . 10 10 . . . . 105 . . . 10 . . 35 Destroy Leader 962 | . 56 . . 30 216 20 10 10 . . 30 30 36 . . 62 22 20 10 . 10 188 . 30 . 20 20 40 102 Allied During Kill 785 | . . 6 . 65 11 . . . . . . . 218 167 80 130 73 35 . . . . . . . . . . . Trap Triggered on 0b10 10 | . 10 . . . . . . . . . . . . . . . . . . . . . . . . . . . . Successful Hack 126 | . 23 4 . . 31 16 . . . . . . 33 . . . . . . . . 19 . . . . . . . Disable Machine 255 | . 15 . . . 105 . . . . . . 15 15 . . 45 . . . . . 45 . . . . . . 15 Anti-Garrison Action 150 | . . . . . 150 . . . . . . . . . . . . . . . . . . . . . . . . Destroy Structure 993 | . 6 . . 11 174 . . . . . . 12 23 7 2 15 16 . . . . 402 . . . . 70 72 183 Advance Influence 150 | . . . . . . . . . . . . . . . . . . . . . . . . . . . 150 . . Partial Spotted 60 | . . . . . 15 . . . . . . . . . . 15 . . . . . 30 . . . . . . . Lose Combat Pursuer 270 | . 15 . . . 75 . . . . . 30 . 15 . . . . 15 . . . 90 . . . . . . 30 Influence Decreases 9065 | 10 300 150 . 234 733 905 287 100 . . 425 157 687 450 136 278 394 304 68 38 234 639 743 300 427 110 300 142 514 Entered New Map 2251 | . . 61 . . 23 571 83 2 . . . . . 66 26 45 137 36 . 2 104 . 489 110 427 . . . 69 Time Decay 5782 | 10 300 79 . 214 620 334 204 98 . . 395 157 437 294 50 153 257 228 68 36 130 399 254 190 . 110 300 122 343 Lost Part 440 | . . 10 . 20 50 . . . . . 20 . . 10 . . . . . . . 240 . . . . . 20 70 Lost Ally 410 | . . . . . 40 . . . . . 10 . 100 80 60 80 . 40 . . . . . . . . . . . Purge Threat 182 | . . . . . . . . . . . . . 150 . . . . . . . . . . . . . . . 32 Squads Dispatched 45 | . 3 . . . 10 1 . . . . . 2 . . . 2 1 . . . . 14 . . . . 5 . 7 Investigation 3 | . 1 . . . . . . . . . . . . . . . . . . . . . . . . . 2 . . Extermination 12 | . . . . . . 1 . . . . . 1 . . . . 1 . . . . 7 . . . . . . 2 Reinforcement 21 | . 2 . . . 4 . . . . . . 1 . . . 2 . . . . . 4 . . . . 3 . 5 Assault 6 | . . . . . 3 . . . . . . . . . . . . . . . . 3 . . . . . . . Garrison 3 | . . . . . 3 . . . . . . . . . . . . . . . . . . . . . . . . Intercept . | . . . . . . . . . . . . . . . . . . . . . . . . . . . . . . Searches Triggered . | . . . . . . . . . . . . . . . . . . . . . . . . . . . . . . Construction Impeded 5 | . . . . . 1 . . . . . . 1 . . . 1 . . . . . . . . . . . . 2 Haulers Reinforced 3 | . . . . . . . . . . . . . . . . . . . . . . 1 . . . . 1 . 1 Active Scanning Responses . | . . . . . . . . . . . . . . . . . . . . . . . . . . . . . . Cargo Convoy Interrupts . | . . . . . . . . . . . . . . . . . . . . . . . . . . . . . . Stealth | -11 -10 -10 -10 -9 -8 -7 -7 -7 -7 -7 -6 -6 -6 -6 -6 -6 -5 -5 -5 -5 -4 -4 -4 -4 -4 -3 -3 -2 -1 --------- Run | Yrd Mat Min Exi Min Mat Fac Low Low Zio Dee Pro Fac Ext Cet Arc Hub Fac Upp Upp War Pro Fac Upp Upp Zhi Pro Res Res Acc Distress Signals 34 | . 4 1 . . 2 . . . . . . . . 2 . 4 1 . . 2 . 4 . . . . 4 8 2 Communications Jammed 49 | . . . . . . . . . . . . . . . . . . . . . . 48 . . . 1 . . . Distress Signals 47 | . . . . . . . . . . . . . . . . . . . . . . 47 . . . . . . . Times Spotted 399 | . 22 4 . 5 50 4 3 4 . 54 20 6 27 9 2 2 6 9 4 17 6 77 . 6 . 8 12 11 31 Peak Tracking Total 37 | . 5 2 . 3 6 1 2 4 . 37 4 3 4 5 1 1 3 4 1 5 5 7 . 2 . 3 3 7 6 Tactical Retreats 23 | . 1 1 . . 3 . . . . 6 2 . 1 . . . . 1 1 . . 5 . . . . . . 2 Traps | -11 -10 -10 -10 -9 -8 -7 -7 -7 -7 -7 -6 -6 -6 -6 -6 -6 -5 -5 -5 -5 -4 -4 -4 -4 -4 -3 -3 -2 -1 ------- Run | Yrd Mat Min Exi Min Mat Fac Low Low Zio Dee Pro Fac Ext Cet Arc Hub Fac Upp Upp War Pro Fac Upp Upp Zhi Pro Res Res Acc Traps Triggered 13 | . . . . . 2 . . . . . . . 5 . . . 1 . . 1 . 3 . . . . 1 . . Indirectly . | . . . . . . . . . . . . . . . . . . . . . . . . . . . . . . Trap Hack Attempts . | . . . . . . . . . . . . . . . . . . . . . . . . . . . . . . Triggered . | . . . . . . . . . . . . . . . . . . . . . . . . . . . . . . Disarmed . | . . . . . . . . . . . . . . . . . . . . . . . . . . . . . . Reprogrammed 4 | . 4 . . . . . . . . . . . . . . . . . . . . . . . . . . . . Reused 1 | . 1 . . . . . . . . . . . . . . . . . . . . . . . . . . . . Traps Extracted . | . . . . . . . . . . . . . . . . . . . . . . . . . . . . . . Installed 3 | . . . . 1 . . . . . 1 1 . . . . . . . . . . . . . . . . . . Triggered 1 | . 1 . . . . . . . . . . . . . . . . . . . . . . . . . . . . Most Traps Carried 13 | . . . . 1 . . 10 10 10 10 13 12 12 12 12 12 12 12 12 12 . . . . . . . . . Machines | -11 -10 -10 -10 -9 -8 -7 -7 -7 -7 -7 -6 -6 -6 -6 -6 -6 -5 -5 -5 -5 -4 -4 -4 -4 -4 -3 -3 -2 -1 ---------- Run | Yrd Mat Min Exi Min Mat Fac Low Low Zio Dee Pro Fac Ext Cet Arc Hub Fac Upp Upp War Pro Fac Upp Upp Zhi Pro Res Res Acc Machines Disabled 26 | . 1 1 . . 8 . . . . 2 1 1 3 . . 3 . . . 1 . 4 . . . . . . 1 Max in Single Turn 3 | . 1 . . . 3 . . . . 1 1 1 1 . . . . . . 1 . 1 . . . . . . 1 Garrison Access 5 | . . . . . 1 . . . . . . . . . . . . . . . . . . . . . 2 2 . Machines Repaired . | . . . . . . . . . . . . . . . . . . . . . . . . . . . . . . Machines Dismantled . | . . . . . . . . . . . . . . . . . . . . . . . . . . . . . . Machines Sabotaged . | . . . . . . . . . . . . . . . . . . . . . . . . . . . . . . Overloaded Fab Kills . | . . . . . . . . . . . . . . . . . . . . . . . . . . . . . . Hacking | -11 -10 -10 -10 -9 -8 -7 -7 -7 -7 -7 -6 -6 -6 -6 -6 -6 -5 -5 -5 -5 -4 -4 -4 -4 -4 -3 -3 -2 -1 --------- Run | Yrd Mat Min Exi Min Mat Fac Low Low Zio Dee Pro Fac Ext Cet Arc Hub Fac Upp Upp War Pro Fac Upp Upp Zhi Pro Res Res Acc Machines Accessed 64 | . 5 1 2 1 10 3 . . . . 1 3 9 1 . 1 2 . . 4 . 6 . . 5 . 7 1 2 Terminals 41 | . 5 1 . . 9 3 . . . . 1 1 9 1 . 1 2 . . . . 4 . . . . 2 . 2 Fabricators 2 | . . . . . . . . . . . . 1 . . . . . . . . . . . . . . 1 . . Repair Stations . | . . . . . . . . . . . . . . . . . . . . . . . . . . . . . . Recycling Units . | . . . . . . . . . . . . . . . . . . . . . . . . . . . . . . Scanalyzers 3 | . . . . . 1 . . . . . . . . . . . . . . . . 1 . . . . 1 . . Garrison Access 6 | . . . . . . . . . . . . 1 . . . . . . . . . 1 . . . . 3 1 . Total Hacks 144 | . 12 2 2 1 29 5 . . . . 1 4 18 1 . 2 3 . . 13 . 9 . . 18 . 16 4 4 Successful 76 | . 5 1 2 1 16 1 . . . . 1 1 8 . . . 2 . . 13 . 2 . . 18 . 3 1 1 Failed 67 | . 7 1 . . 12 4 . . . . . 3 10 1 . 2 1 . . . . 7 . . . . 13 3 3 Catastrophic 19 | . 1 . . . 1 1 . . . . . 1 5 . . . 1 . . . . 3 . . . . 5 1 . Database Lockouts 1 | . . . . . 1 . . . . . . . . . . . . . . . . . . . . . . . . Manual 32 | . 5 . 1 . 6 1 . . 10 . . . 2 1 . . . . . 2 . 4 . . . . . . . Terminals 87 | . 12 2 . . 27 5 . . . . 1 2 18 1 . 2 3 . . . . 6 . . . . 4 . 4 Fabricators 3 | . . . . . . . . . . . . 1 . . . . . . . . . . . . . . 2 . . Repair Stations . | . . . . . . . . . . . . . . . . . . . . . . . . . . . . . . Recycling Units . | . . . . . . . . . . . . . . . . . . . . . . . . . . . . . . Scanalyzers 7 | . . . . . 2 . . . . . . . . . . . . . . . . 2 . . . . 3 . . Garrison Access 13 | . . . . . . . . . . . . 1 . . . . . . . . . 1 . . . . 7 4 . Terminal Hacks 62 | . 1 1 2 1 11 1 . . . . 1 1 8 . . . 2 . . 13 . 1 . . 18 . . . 1 Record 9 | . . . 1 . . . . . . . 1 . . . . . . . . 1 . . . . 6 . . . . Part Schematic 4 | . . . . . . . . . . . . . . . . . . . . . . . . . 4 . . . . Robot Analysis 5 | . . . . . 1 . . . . . . . . . . . . . . . . . . . 4 . . . . Prototype ID Bank 19 | . . . . . 2 . . . . . . . 1 . . . 1 . . 11 . . . . 4 . . . . Open Door 5 | . . . . 1 . . . . . . . 1 2 . . . . . . 1 . . . . . . . . . Branch Access Points 1 | . . . . . . 1 . . . . . . . . . . . . . . . . . . . . . . . Emergency Access Points 1 | . . . . . 1 . . . . . . . . . . . . . . . . . . . . . . . . Alert Level 2 | . . . . . . . . . . . . . 1 . . . 1 . . . . . . . . . . . . Unreport Threat 2 | . . . . . . . . . . . . . 1 . . . . . . . . . . . . . . . 1 Locate Traps 2 | . . . . . 1 . . . . . . . 1 . . . . . . . . . . . . . . . . Reprogram Traps 1 | . 1 . . . . . . . . . . . . . . . . . . . . . . . . . . . . Dispatch Records 2 | . . 1 . . . . . . . . . . 1 . . . . . . . . . . . . . . . . Security Status 1 | . . . . . 1 . . . . . . . . . . . . . . . . . . . . . . . . Hauler Manifests 3 | . . . . . 2 . . . . . . . 1 . . . . . . . . . . . . . . . . Zone Layout 4 | . . . . . 3 . . . . . . . . . . . . . . . . 1 . . . . . . . Proto ID Catalog 1 | . . . 1 . . . . . . . . . . . . . . . . . . . . . . . . . . Fabricator Hacks . | . . . . . . . . . . . . . . . . . . . . . . . . . . . . . . Repair Station Hacks . | . . . . . . . . . . . . . . . . . . . . . . . . . . . . . . Recycling Unit Hacks . | . . . . . . . . . . . . . . . . . . . . . . . . . . . . . . Scanalyzer 2 | . . . . . 1 . . . . . . . . . . . . . . . . . . . . . 1 . . Retrieve Study 2 | . . . . . 1 . . . . . . . . . . . . . . . . . . . . . 1 . . Garrison Access Hacks 3 | . . . . . . . . . . . . . . . . . . . . . . . . . . . 2 1 . Seal Access 3 | . . . . . . . . . . . . . . . . . . . . . . . . . . . 2 1 . Unauthorized Hacks 9 | . 4 . . . 4 . . . . . . . . . . . . . . . . 1 . . . . . . . Terminals 9 | . 4 . . . 4 . . . . . . . . . . . . . . . . 1 . . . . . . . Botnet 4 | . 1 . . . 2 . . . . . . . . . . . . . . . . 1 . . . . . . . Skim 5 | . 3 . . . 2 . . . . . . . . . . . . . . . . . . . . . . . . Fabricators . | . . . . . . . . . . . . . . . . . . . . . . . . . . . . . . Repair Stations . | . . . . . . . . . . . . . . . . . . . . . . . . . . . . . . Recycling Units . | . . . . . . . . . . . . . . . . . . . . . . . . . . . . . . Scanalyzers . | . . . . . . . . . . . . . . . . . . . . . . . . . . . . . . Garrison Access . | . . . . . . . . . . . . . . . . . . . . . . . . . . . . . . Data Cores Recovered 3 | . . . . . 1 . . . . . . . 1 . . . 1 . . . . . . . . . . . . Used 2 | . . . . . 1 . . . . . . . 1 . . . . . . . . . . . . . . . . Hacking Detections 47 | . 5 1 . . 10 3 . . . . . 3 8 1 . 1 2 . . . . 6 . . . . 5 . 2 Full Trace Events . | . . . . . . . . . . . . . . . . . . . . . . . . . . . . . . Feedback Events . | . . . . . . . . . . . . . . . . . . . . . . . . . . . . . . Feedback Blocked . | . . . . . . . . . . . . . . . . . . . . . . . . . . . . . . Robot Schematics Acquired 3 | . . . . . . . . . 3 . . . . . . . . . . . . . . . . . . . . Robots Built . | . . . . . . . . . . . . . . . . . . . . . . . . . . . . . . Authchips . | . . . . . . . . . . . . . . . . . . . . . . . . . . . . . . Time . | . . . . . . . . . . . . . . . . . . . . . . . . . . . . . . Total Robot Build Rating . | . . . . . . . . . . . . . . . . . . . . . . . . . . . . . . Part Schematics Acquired 20 | . . . . . . . . . 16 . . . . . . . . . . . . . . . 4 . . . . Parts Built . | . . . . . . . . . . . . . . . . . . . . . . . . . . . . . . Authchips . | . . . . . . . . . . . . . . . . . . . . . . . . . . . . . . Time . | . . . . . . . . . . . . . . . . . . . . . . . . . . . . . . Total Part Build Rating . | . . . . . . . . . . . . . . . . . . . . . . . . . . . . . . Part Studies Acquired 2 | . . . . . 1 . . . . . . . . . . . . . . . . . . . . . 1 . . Parts Repaired . | . . . . . . . . . . . . . . . . . . . . . . . . . . . . . . Time . | . . . . . . . . . . . . . . . . . . . . . . . . . . . . . . Parts Recycled . | . . . . . . . . . . . . . . . . . . . . . . . . . . . . . . Recycled Matter . | . . . . . . . . . . . . . . . . . . . . . . . . . . . . . . Retrieved Matter . | . . . . . . . . . . . . . . . . . . . . . . . . . . . . . . Retrieved Components . | . . . . . . . . . . . . . . . . . . . . . . . . . . . . . . Parts Scanalyzed . | . . . . . . . . . . . . . . . . . . . . . . . . . . . . . . Part Schematics Acquired . | . . . . . . . . . . . . . . . . . . . . . . . . . . . . . . Parts Damaged . | . . . . . . . . . . . . . . . . . . . . . . . . . . . . . . Bothacking | -11 -10 -10 -10 -9 -8 -7 -7 -7 -7 -7 -6 -6 -6 -6 -6 -6 -5 -5 -5 -5 -4 -4 -4 -4 -4 -3 -3 -2 -1 ------------ Run | Yrd Mat Min Exi Min Mat Fac Low Low Zio Dee Pro Fac Ext Cet Arc Hub Fac Upp Upp War Pro Fac Upp Upp Zhi Pro Res Res Acc Used RIF Installer . | . . . . . . . . . . . . . . . . . . . . . . . . . . . . . . Robots Hacked . | . . . . . . . . . . . . . . . . . . . . . . . . . . . . . . Non-combat . | . . . . . . . . . . . . . . . . . . . . . . . . . . . . . . Combat . | . . . . . . . . . . . . . . . . . . . . . . . . . . . . . . Robot Hacks Applied . | . . . . . . . . . . . . . . . . . . . . . . . . . . . . . . Relay Couplers Released 4 | . . . . . 2 . . . . . . . . . . . . . . . . . . . . . . 2 . Machine Destruction 4 | . . . . . 2 . . . . . . . . . . . . . . . . . . . . . . 2 . Fabnet Peak Effective % . | . . . . . . . . . . . . . . . . . . . . . . . . . . . . . . Robots Rewired 16 | . . . . . . . . . . . . . 15 . . . . . . . . 1 . . . . . . . Allies Hacked . | . . . . . . . . . . . . . . . . . . . . . . . . . . . . . . Hacks Repelled . | . . . . . . . . . . . . . . . . . . . . . . . . . . . . . . Allies | -11 -10 -10 -10 -9 -8 -7 -7 -7 -7 -7 -6 -6 -6 -6 -6 -6 -5 -5 -5 -5 -4 -4 -4 -4 -4 -3 -3 -2 -1 -------- Run | Yrd Mat Min Exi Min Mat Fac Low Low Zio Dee Pro Fac Ext Cet Arc Hub Fac Upp Upp War Pro Fac Upp Upp Zhi Pro Res Res Acc Total Allies 42 | . . 3 . 3 . . . . 10 . . . 20 5 . . . . . . . 1 . . . . . . . Largest Group 14 | . . 3 3 6 2 . . . 10 10 . . 14 12 11 8 3 3 . . . 1 . . . . . . . Highest-Rated Group 802 | . . 40 37 113 62 . . . 403 403 . . 461 802 649 559 231 211 . . . 49 . . . . . . . Highest-Rated Ally 159 | . . 16 16 31 31 . . . 96 96 . . 159 159 96 96 96 89 . . . 49 . . . . . . . Total Orders 16 | . . . . 4 . . . . . . 7 . . 3 . . 2 . . . . . . . . . . . . STAY 5 | . . . . 2 . . . . . . 1 . . 1 . . 1 . . . . . . . . . . . . FOLLOW 5 | . . . . 2 . . . . . . . . . 2 . . 1 . . . . . . . . . . . . EXPLORE 3 | . . . . . . . . . . . 3 . . . . . . . . . . . . . . . . . . RETURN 3 | . . . . . . . . . . . 3 . . . . . . . . . . . . . . . . . . Ally Attacks 325 | . . 11 . 22 19 . . . . 69 . . 42 49 20 48 22 15 . . . 8 . . . . . . . Total Damage 7487 | . . 134 . 270 257 . . . . 1425 . . 981 1080 558 1549 669 308 . . . 256 . . . . . . . Kills 60 | . . 2 . 8 1 . . . . 8 . . 12 7 2 13 5 1 . . . 1 . . . . . . . Allies Corrupted 2 | . . . . . . . . . . . 1 . . . . . . 1 . . . . . . . . . . . Allies Melted 3 | . . . . . . . . . . 2 . . . . . . . 1 . . . . . . . . . . . Intel | -11 -10 -10 -10 -9 -8 -7 -7 -7 -7 -7 -6 -6 -6 -6 -6 -6 -5 -5 -5 -5 -4 -4 -4 -4 -4 -3 -3 -2 -1 ------- Run | Yrd Mat Min Exi Min Mat Fac Low Low Zio Dee Pro Fac Ext Cet Arc Hub Fac Upp Upp War Pro Fac Upp Upp Zhi Pro Res Res Acc Active Infowar (turns) 20875 | 47 999 554 376 234 1960 749 1248 914 869 . . . . . . . 358 825 879 1866 1358 2393 553 384 420 1251 1233 935 470 Optics 6285 | . . . . . 1960 749 1248 914 869 . . . . . . . . . . . . . . . . . . 75 470 Sensors 1111 | . . . . . . . . . . . . . . . . . . . . . . . . . . 1111 . . . Terrain 810 | . . . . . . . . . . . . . . . . . . . 182 11 . . . . . 179 8 . 430 Seismic 2210 | 47 999 554 376 234 . . . . . . . . . . . . . . . . . . . . . . . . . Jamming 12888 | . . . . . . . . . . . . . . . . . 358 825 879 1866 1358 2393 553 384 420 1251 1233 935 433 Robot Analysis Total 5 | . . . . . 1 . . . . . . . . . . . . . . . . . . . 4 . . . . Derelict Logs Recovered 13 | . . 1 . 1 . . 1 1 1 . 1 . . . . . . 1 2 . 3 . 1 . . . . . . Drone Launches 3 | . . . . . . . . . . . 3 . . . . . . . . . . . . . . . . . . Drone Recoveries 1 | . . . . . . . . . . . 1 . . . . . . . . . . . . . . . . . . Exploration | -11 -10 -10 -10 -9 -8 -7 -7 -7 -7 -7 -6 -6 -6 -6 -6 -6 -5 -5 -5 -5 -4 -4 -4 -4 -4 -3 -3 -2 -1 ------------- Run | Yrd Mat Min Exi Min Mat Fac Low Low Zio Dee Pro Fac Ext Cet Arc Hub Fac Upp Upp War Pro Fac Upp Upp Zhi Pro Res Res Acc Turns Passed 32494 | 122 1027 554 376 757 2083 749 1248 914 1734 3172 1727 587 2070 656 109 378 715 825 879 1947 1358 2786 556 384 420 1251 1233 935 942 Spaces Moved 14710 | 54 599 367 271 502 913 407 639 474 907 1306 731 238 797 161 47 164 350 407 433 1000 753 1014 199 164 141 330 571 453 318 Core 3 | 3 . . . . . . . . . . . . . . . . . . . . . . . . . . . . . Treads 137 | 51 86 . . . . . . . . . . . . . . . . . . . . . . . . . . . . Legs 6406 | . . . . . . . . . . . . . . 62 47 164 350 407 433 1000 753 1014 199 164 141 330 571 453 318 Wheels 8164 | . 513 367 271 502 913 407 639 474 907 1306 731 238 797 99 . . . . . . . . . . . . . . . Hover . | . . . . . . . . . . . . . . . . . . . . . . . . . . . . . . Flight . | . . . . . . . . . . . . . . . . . . . . . . . . . . . . . . Fastest Speed 50 | 50 135 135 135 135 145 155 185 185 170 155 185 200 145 160 210 210 180 180 180 176 176 176 210 210 180 179 173 173 112 Average Speed 175 | 153 138 135 135 135 161 170 185 185 184 175 185 209 186 180 210 210 187 180 180 177 176 179 210 210 180 185 174 175 169 Slowest Speed 335 | 160 160 175 135 140 170 185 185 185 185 290 185 215 335 270 210 210 210 180 180 180 176 235 270 210 210 210 179 180 180 Overloaded Moves . | . . . . . . . . . . . . . . . . . . . . . . . . . . . . . . Propulsion Burnouts . | . . . . . . . . . . . . . . . . . . . . . . . . . . . . . . Robots Hopped . | . . . . . . . . . . . . . . . . . . . . . . . . . . . . . . Potential Cave-ins 11 | . . . . . . . . . . . . . . . . . . . . . . . . . . . 11 . . Cave-ins Triggered . | . . . . . . . . . . . . . . . . . . . . . . . . . . . . . . Exploration Rate (%) 54 | 5 85 70 70 95 91 12 61 65 86 78 88 11 87 56 69 26 9 67 61 95 92 30 40 37 60 53 19 10 10 Regions Visited 29 Branch Regions 20 Pre-discovered Areas 10 | . . 1 1 . . . . 1 2 . 1 . . . . . . . . . 1 . . . 3 . . . . Known Exits Taken 7 | . . . . . 1 1 . . . . . 1 . . . . 1 . . . . 1 . . . 1 1 . . Unknown Exits Taken 22 | 1 1 1 1 1 . . 1 1 1 1 1 . 1 1 1 1 . 1 1 1 1 . 1 1 1 . . 1 . Scrap Searched 27 | . . . . 2 . . 4 2 4 . 5 . . . . . . 2 . . 4 . 1 2 . 1 . . . Spaces Dug 189 | . . . . . 15 . . . . . 8 5 . . . 3 4 1 5 . . 50 3 . . 23 64 2 6 Terrain Destroyed 868 | . 6 . . 19 196 . . . . 2 61 12 18 7 1 3 4 20 15 5 11 220 4 7 . 48 69 31 109 Melee 3 | . . . . . 3 . . . . . . . . . . . . . . . . . . . . . . . . Projectile 357 | . . . . . 3 . . . . 1 35 12 18 7 1 3 4 20 15 5 11 71 4 7 . 48 69 9 14 AOE 508 | . 6 . . 19 190 . . . . 1 26 . . . . . . . . . . 149 . . . . . 22 95 Terrain Rammed . | . . . . . . . . . . . . . . . . . . . . . . . . . . . . . . Walls Destroyed . | . . . . . . . . . . . . . . . . . . . . . . . . . . . . . . Machines Disabled . | . . . . . . . . . . . . . . . . . . . . . . . . . . . . . . Actions | -11 -10 -10 -10 -9 -8 -7 -7 -7 -7 -7 -6 -6 -6 -6 -6 -6 -5 -5 -5 -5 -4 -4 -4 -4 -4 -3 -3 -2 -1 --------- Run | Yrd Mat Min Exi Min Mat Fac Low Low Zio Dee Pro Fac Ext Cet Arc Hub Fac Upp Upp War Pro Fac Upp Upp Zhi Pro Res Res Acc Total 20307 | 80 730 407 282 580 1365 459 689 499 964 2117 1044 309 1315 492 53 195 402 462 508 1152 768 1757 335 181 307 909 738 571 637 Wait 3856 | 9 54 20 2 58 248 15 38 14 42 646 238 48 193 298 5 30 31 30 58 91 7 513 130 3 156 522 65 70 222 Move 14680 | 53 598 366 270 501 912 406 638 473 906 1305 730 237 796 160 46 163 349 406 432 999 752 1013 198 163 140 329 570 452 317 Hop . | . . . . . . . . . . . . . . . . . . . . . . . . . . . . . . Pick Up 191 | 6 23 4 4 6 34 9 . 3 2 19 12 3 10 3 . . 1 3 1 9 . 11 2 3 4 1 8 6 4 Fast Attach 88 | 7 2 . . . 7 2 . . 4 19 1 . 6 2 . . 4 2 . 8 . 12 . . 3 2 4 3 . Attach 56 | . . 2 . 2 10 2 . . . 8 2 1 5 1 . . . . . 2 . 12 . . . . . 2 7 Detach 117 | . 1 . . . 3 . . . 2 13 5 3 19 2 . . 6 . . 14 1 18 2 . 3 4 3 8 10 Swap 139 | . 7 4 2 5 30 6 6 . 2 18 5 2 7 3 . . . . 2 2 . 8 . . 1 9 6 8 6 Drop 229 | . 9 3 4 6 34 14 . 3 5 45 12 3 18 6 . . 5 4 1 14 . 15 . 1 . 2 13 7 5 Fire 696 | 5 34 8 . 1 81 4 5 6 . 36 38 12 41 17 2 2 6 17 14 13 8 142 3 11 . 40 69 15 66 Melee 17 | . . . . . 6 1 2 . 1 7 . . . . . . . . . . . . . . . . . . . Ram 1 | . 1 . . . . . . . . . . . . . . . . . . . . . . . . . . . . Kick . | . . . . . . . . . . . . . . . . . . . . . . . . . . . . . . Crush 1 | . 1 . . . . . . . . . . . . . . . . . . . . . . . . . . . . Escape Stasis 24 | . . . . . . . . . . . . . 24 . . . . . . . . . . . . . . . . Rewire 209 | . . . . . . . . . . . . . 196 . . . . . . . . 13 . . . . . . . Trap 3 | . . . . 1 . . . . . 1 1 . . . . . . . . . . . . . . . . . . Miscellaneous . | . . . . . . . . . . . . . . . . . . . . . . . . . . . . . . Route ------- -11/Scrapyard -10/Materials (discovered 6 exits: [*Mat x3] / *Min x2 / [*Sub]) -10/Mines (discovered 3 exits: [*Mat x2] / *Exi) -10/Exiles -9/Mines (discovered 2 exits: *Mat x2) -8/Materials (discovered 5 exits: *Fac x3 / [*Sto x2]) -7/Factory (discovered 2 exits: *Low x2) -7/Lower Caves -7/Lower Caves -7/Zion (discovered 2 exits: [*Dee] / [*Pro]) -7/Deep Caves -6/Proximity Caves -6/Factory (discovered 2 exits: *Low / *Ext) -6/Extension (discovered 2 exits: *Fac / *Cet) -6/Cetus (discovered 2 exits: *Fac / [*Arc]) -6/Archives -6/Hub_04(d) -5/Factory -5/Upper Caves -5/Upper Caves (discovered 2 exits: *Fac / *War) -5/Warlord -4/Proximity Caves -4/Factory (discovered 3 exits: Res x2 / *Upp) -4/Upper Caves -4/Upper Caves -4/Zhirov -3/Proximity Caves -3/Research -2/Research (discovered 2 exits: *Acc / Tes) -1/Access To Epsilon Eridani History --------- Turn | Location | Event 86 | -11/Scrapyard | Discovered new exit (range 12) 123 | -11/Scrapyard | Entered Materials 302 | -10/Materials | Build established: Mutant 359 | -10/Materials | Discovered new exit (range 15) 515 | -10/Materials | Discovered new exit (range 16) 726 | -10/Materials | Discovered new exit (range 5) 883 | -10/Materials | Discovered new exit (range 15) 968 | -10/Materials | Discovered new exit (range 5) 990 | -10/Materials | Discovered new exit (range 15) 1150 | -10/Materials | Entered Mines 1189 | -10/Mines | Excavation squad dispatched 1189 | -10/Mines | A large section of the Mines collapsed 1329 | -10/Mines | Discovered new exit (range 15) 1352 | -10/Mines | Assisted by bots powering up and referring to "LRC-V3" 1413 | -10/Mines | Discovered new exit (range 15) 1490 | -10/Mines | Deemed a non-threat by the Exiles lab entrance 1512 | -10/Mines | Received a Rocket Launcher from a helpful Derelict 1631 | -10/Mines | Learned location of Storage (-8) 1694 | -10/Mines | Discovered new exit (range 5) 1704 | -10/Mines | Entered Exiles 1704 | -10/Exiles | Accompanied by 3 allies 1744 | -10/Exiles | Met 8R-AWN 1764 | -10/Exiles | Met EX-HEX 1817 | -10/Exiles | Met EX-DEC 1844 | -10/Exiles | Learned location of Zion (-7) 1867 | -10/Exiles | Met EX-BIN 1886 | -10/Exiles | Aligned with FarCom system 1887 | -10/Exiles | Given EX-Vault access code 1921 | -10/Exiles | Opened EX-Vault 1933 | -10/Exiles | Found Superbattery 1961 | -10/Exiles | Warned to stay clear of 0b10 Research branches 2064 | -10/Exiles | Discovered new exit (range 10) 2080 | -10/Exiles | Left Exiles lab with Superbattery 2080 | -10/Exiles | Entered Mines 2080 | -9/Mines | Accompanied by 3 allies 2106 | -9/Mines | Found a hidden stash of uninstalled traps 2397 | -9/Mines | Discovered new exit (range 11) 2484 | -9/Mines | Learned location of 1 exit from Materials 2517 | -9/Mines | Escorted by a lone wolf Derelict 2703 | -9/Mines | Met a Derelict who couldn't figure out how to use a Trap Extractor 2787 | -9/Mines | Discovered new exit (range 10) 2837 | -9/Mines | Entered Materials 2837 | -8/Materials | Accompanied by 2 allies 2837 | -8/Materials | Evolved 4 slots: Utility x3, Weapon x1 2838 | -8/Materials | Identified exit to Factory 2842 | -8/Materials | Led the pair of lost Derelicts to an unsafe place 2854 | -8/Materials | Murdered 4 allies 3182 | -8/Materials | Central database locked down 3191 | -8/Materials | Discovered new exit (range 6) 3408 | -8/Materials | Build established: Scavenger-Tank 3453 | -8/Materials | Discovered exit to Factory (range 20) 4150 | -8/Materials | Discovered exit to Factory (range 17) 4151 | -8/Materials | Discovered new exit (range 18) 4638 | -8/Materials | Garrison activated, responded to threat 4837 | -8/Materials | First assault squad dispatched 4920 | -8/Materials | Entered Factory 4920 | -7/Factory | Evolved 2 slots: Utility x2 5118 | -7/Factory | Build established: Scavenger-Mutant 5406 | -7/Factory | Identified exit to Lower Caves 5669 | -7/Factory | Entered Lower Caves 5856 | -7/Lower Caves | Learned Factory terminal intel 5923 | -7/Lower Caves | Spotted B-75 Beast 5927 | -7/Lower Caves | Build established: Tank 6364 | -7/Lower Caves | Build established: Mutant 6762 | -7/Lower Caves | Build established: Trapper-Tank 6874 | -7/Lower Caves | Discovered new exit (range 7) 6917 | -7/Lower Caves | Entered another Lower Caves area 7726 | -7/Lower Caves | Discovered new exit (range 12) 7831 | -7/Lower Caves | Entered Zion 7850 | -7/Zion | Given A8's code to call for help 7941 | -7/Zion | Discovered new exit (range 15) 8052 | -7/Zion | Gained Derelict followers 8109 | -7/Zion | Acquired unknown access codes intercepted by a Zionite 8213 | -7/Zion | Learned location of Data Miner (-6) 8232 | -7/Zion | Build established: Trapper-Mutant 8265 | -7/Zion | Received a visual enhancement algorithm 8265 | -7/Zion | Ran a visual enhancement algorithm 8279 | -7/Zion | Ran a visual enhancement algorithm 8483 | -7/Zion | Found Prototype Device 8483 | -7/Zion | Identified Phasing AFG 8650 | -7/Zion | Learned location of Armory (-4) 9178 | -7/Zion | Gained Derelict followers 9491 | -7/Zion | Enhanced Grunt warped into view, answering call for help 9494 | -7/Zion | Enhanced Grunt warped into view, answering call for help 9494 | -7/Zion | Opened final containment barrier to the Deep Caves 9523 | -7/Zion | Discovered new exit (range 3) 9523 | -7/Zion | Saw the warning signs outside the Deep Caves entrance 9565 | -7/Zion | Entered Deep Caves 9565 | -7/Deep Caves | Accompanied by 10 allies 9769 | -7/Deep Caves | Found Surveybot 24 Scanner 9773 | -7/Deep Caves | Found Surveybot 24 Chip 9905 | -7/Deep Caves | Attacked by Z-Imprinter 9915 | -7/Deep Caves | Allies destroyed Z-Imprinter 10022 | -7/Deep Caves | Found Prototype Device 10022 | -7/Deep Caves | Identified Zio. Metafield Generator 10124 | -7/Deep Caves | Z-Facility disabled 10138 | -7/Deep Caves | Build established: Trapper-Tank 10182 | -7/Deep Caves | Lost 9 allies 10200 | -7/Deep Caves | Found Prototype Device 10200 | -7/Deep Caves | Identified Exp. Thermal Shield 10209 | -7/Deep Caves | Found Prototype Protection 10209 | -7/Deep Caves | Identified Zio. Weapon Casing 10299 | -7/Deep Caves | Found Zio. Weapon Casing 10871 | -7/Deep Caves | Discovered new exit (range 7) 10915 | -7/Deep Caves | Spotted AG-05135 10944 | -7/Deep Caves | Destroyed AG-05135 11157 | -7/Deep Caves | Found Zio. Weapon Casing 11455 | -7/Deep Caves | Build established: Scavenger-Tank 11486 | -7/Deep Caves | Spotted AG-93921 11577 | -7/Deep Caves | Destroyed AG-93921 11586 | -7/Deep Caves | Triggered Deep Caves wall 11586 | -7/Deep Caves | Found Skeleton Box 11588 | -7/Deep Caves | Spotted AS-37795 11600 | -7/Deep Caves | Spotted AS-42504 11607 | -7/Deep Caves | Destroyed AS-37795 11609 | -7/Deep Caves | Destroyed AS-42504 11635 | -7/Deep Caves | Destroyed 39 combat bots 11658 | -7/Deep Caves | Exposed GOLEM chamber 11662 | -7/Deep Caves | Found GOLEM Unit 11667 | -7/Deep Caves | Found GOLEM Unit 11686 | -7/Deep Caves | Found GOLEM Unit 11691 | -7/Deep Caves | Found GOLEM Unit 11705 | -7/Deep Caves | Found GOLEM Unit 11871 | -7/Deep Caves | Build established: Trapper-Mutant 12218 | -7/Deep Caves | Found Zio. Weapon Casing 12286 | -7/Deep Caves | Build established: Trapper-Golem 12737 | -7/Deep Caves | Entered Proximity Caves 12985 | -6/Proximity Caves | Acquired the password to a Derelict Tinkerer's latest research 13168 | -6/Proximity Caves | Caught by Unaware searching for contraband prototypes 13220 | -6/Proximity Caves | Caught by Unaware searching for contraband prototypes 13366 | -6/Proximity Caves | Attracted the attention of an 0b10 checkpoint 14380 | -6/Proximity Caves | Discovered new exit (range 14) 14464 | -6/Proximity Caves | Entered Factory 14464 | -6/Factory | Evolved 2 slots: Power x1, Utility x1 14465 | -6/Factory | Loaded intel: 28 terminal locations 14930 | -6/Factory | Discovered new exit (range 10) 14999 | -6/Factory | Identified exit to Lower Caves 15043 | -6/Factory | Discovered new exit (range 6) 15049 | -6/Factory | Identified exit to Extension 15051 | -6/Factory | Entered Extension 15613 | -6/Extension | Remotely autohacked Sealed Heavy Doors 15613 | -6/Extension | Rescued a captive Derelict 15615 | -6/Extension | Rescued a captive Derelict 16197 | -6/Extension | Build established: Commander-Golem 16395 | -6/Extension | Spotted B-75 Beast 16409 | -6/Extension | Allies destroyed B-75 Beast 16415 | -6/Extension | Spotted B-75 Beast 16434 | -6/Extension | Destroyed B-75 Beast 16454 | -6/Extension | Lost 6 allies 16718 | -6/Extension | Build established: Trapper-Golem 16891 | -6/Extension | Rescued A7 16926 | -6/Extension | Rescued a captive Derelict 16926 | -6/Extension | Rescued a captive Derelict 17059 | -6/Extension | Discovered new exit (range 10) 17061 | -6/Extension | Discovered new exit (range 6) 17121 | -6/Extension | Entered Cetus 17121 | -6/Cetus | Accompanied by 12 allies (A7) 17126 | -6/Cetus | Acquired a Cetus Manufacturing Module code from A7 17142 | -6/Cetus | Spotted Cetus Guard 17143 | -6/Cetus | Spotted Cetus Guard 17147 | -6/Cetus | Spotted Cetus Guard 17147 | -6/Cetus | Spotted Cetus Guard 17150 | -6/Cetus | Destroyed Cetus Guard 17152 | -6/Cetus | Allies destroyed Cetus Guard 17159 | -6/Cetus | Destroyed Cetus Guard 17233 | -6/Cetus | Started Cetus Manufacturing Module 17258 | -6/Cetus | Manufactured an Enhanced Grunt 17269 | -6/Cetus | Discovered new exit (range 16) 17283 | -6/Cetus | Manufactured an Enhanced Grunt 17296 | -6/Cetus | Spotted Cetus Guard 17296 | -6/Cetus | Spotted Cetus Guard 17299 | -6/Cetus | Spotted Cetus Guard 17301 | -6/Cetus | Spotted Cetus Guard 17304 | -6/Cetus | Destroyed Cetus Guard 17308 | -6/Cetus | Manufactured an Enhanced Grunt 17314 | -6/Cetus | Allies destroyed Cetus Guard 17315 | -6/Cetus | Destroyed Cetus Guard 17326 | -6/Cetus | Allies destroyed Cetus Guard 17331 | -6/Cetus | Discovered new exit (range 15) 17333 | -6/Cetus | Manufactured an Enhanced Grunt 17339 | -6/Cetus | Met Revision 17 17358 | -6/Cetus | Manufactured an Enhanced Grunt 17359 | -6/Cetus | Lost 3 allies 17636 | -6/Cetus | Build established: Commander-Golem 17721 | -6/Cetus | Murdered A7 17726 | -6/Cetus | Extracted ID and sensor layout for unrecognized location from A7's data core 17777 | -6/Cetus | Entered Archives 17777 | -6/Archives | Accompanied by 11 allies 17836 | -6/Archives | Discovered new exit (range 15) 17842 | -6/Archives | Lost 3 allies 17886 | -6/Archives | Entered Hub_04(d) 17886 | -6/Hub_04(d) | Accompanied by 8 allies 18098 | -6/Hub_04(d) | Build established: Trapper-Golem 18223 | -6/Hub_04(d) | Discovered new exit (range 16) 18264 | -6/Hub_04(d) | Entered Factory 18264 | -5/Factory | Accompanied by 3 allies 18264 | -5/Factory | Evolved 2 slots: Propulsion x1, Utility x1 18265 | -5/Factory | Identified exit to Upper Caves 18979 | -5/Factory | Entered Upper Caves 18979 | -5/Upper Caves | Accompanied by 3 allies 19012 | -5/Upper Caves | P-70 Sage assimilated allied 26-TBS(h) 19322 | -5/Upper Caves | Learned Factory non-interactive machine intel 19712 | -5/Upper Caves | Discovered new exit (range 7) 19804 | -5/Upper Caves | Entered another Upper Caves area 20068 | -5/Upper Caves | Learned 12 Factory zone layouts 20090 | -5/Upper Caves | Discovered new exit (range 9) 20221 | -5/Upper Caves | Found Alien Artifact 20363 | -5/Upper Caves | Attracted the attention of an 0b10 checkpoint 20632 | -5/Upper Caves | Discovered new exit (range 4) 20683 | -5/Upper Caves | Entered Warlord 20753 | -5/Warlord | System corruption cleaned by Quarantine Array 20790 | -5/Warlord | Discovered new exit (range 15) 21137 | -5/Warlord | Received a Watcher feed algorithm from an ecstatic Tinkerer 21137 | -5/Warlord | Ran a visual enhancement algorithm 21138 | -5/Warlord | Ran a Watcher feed algorithm 21444 | -5/Warlord | Found Prototype Hackware 21457 | -5/Warlord | Found Prototype Device 21457 | -5/Warlord | Identified Thermal Barrier 21460 | -5/Warlord | Found Prototype Processor 21460 | -5/Warlord | Identified Exp. Armor Integrity Analyzer 21538 | -5/Warlord | Found Prototype Reactor 21624 | -5/Warlord | Identified Vortex Chain Reactor 21732 | -5/Warlord | Warlord's base attacked by MAIN.C 21782 | -5/Warlord | Met Warlord 22082 | -5/Warlord | Warlord forces counterattacked 22265 | -5/Warlord | Found Prototype Energy Gun 22265 | -5/Warlord | Identified Vortex Rifle 22270 | -5/Warlord | Found Prototype Energy Cannon 22270 | -5/Warlord | Identified Vortex Cannon 22275 | -5/Warlord | Found Vortex Cannon 22279 | -5/Warlord | Found Vortex Rifle 22285 | -5/Warlord | Found Vortex Rifle 22295 | -5/Warlord | Found Vortex Rifle 22407 | -5/Warlord | Warlord base infiltrated, sounded retreat 22472 | -5/Warlord | Spotted Executioner 22523 | -5/Warlord | Lost 3 allies 22560 | -5/Warlord | Build established: Golem 22630 | -5/Warlord | Entered Proximity Caves 23318 | -4/Proximity Caves | Learned 4 Research zone layouts 23636 | -4/Proximity Caves | Attracted the attention of an 0b10 checkpoint 23752 | -4/Proximity Caves | Discovered new exit (range 7) 23988 | -4/Proximity Caves | Entered Factory 23988 | -4/Factory | Evolved 2 slots: Utility x2 23989 | -4/Factory | Identified exit to Upper Caves 23990 | -4/Factory | Identified exit to Research 23991 | -4/Factory | Loaded intel: 194 non-interactive machine locations 25773 | -4/Factory | Lost 3 parts (1n1u1w) 25797 | -4/Factory | Destroyed 13 combat bots 25859 | -4/Factory | Lost 6 parts (1p1n2u2w) 26238 | -4/Factory | First assault squad dispatched 26437 | -4/Factory | Lost 7 parts (1p1n3u2w) 26457 | -4/Factory | System corruption reached 10% 26502 | -4/Factory | Lost 3 parts (1u2w) 26555 | -4/Factory | Identified Core Expander 26555 | -4/Factory | Installed Core Expander, added new Propulsion slot 26556 | -4/Factory | Identified Ghost Barrier 26774 | -4/Factory | Entered Upper Caves 26824 | -4/Upper Caves | Build established: Hacker-Golem 26835 | -4/Upper Caves | Learned Research terminal intel 27284 | -4/Upper Caves | Discovered new exit (range 10) 27330 | -4/Upper Caves | Entered another Upper Caves area 27470 | -4/Upper Caves | Spotted B-86 Titan 27491 | -4/Upper Caves | Destroyed B-86 Titan 27523 | -4/Upper Caves | Encountered a Warlord checkpoint 27658 | -4/Upper Caves | Discovered new exit (range 8) 27714 | -4/Upper Caves | Entered Zhirov 27716 | -4/Zhirov | Discovered new exit (range 3) 27748 | -4/Zhirov | Met Zhirov 27783 | -4/Zhirov | Learned location of Quarantine (-3) 27783 | -4/Zhirov | Learned location of Testing (-2) 27783 | -4/Zhirov | Learned location of Command (-1) 27799 | -4/Zhirov | Zhirov requested help retrieving the SGEMP Prototype 27831 | -4/Zhirov | Found Alien Artifact 27831 | -4/Zhirov | Identified Integrated Reactor 27831 | -4/Zhirov | Installed Integrated Reactor, increased core energy generation (+10) 27852 | -4/Zhirov | Found Alien Artifact 28134 | -4/Zhirov | Entered Proximity Caves 28140 | -3/Proximity Caves | Spotter reported a threat 28507 | -3/Proximity Caves | Encountered an infested base 29174 | -3/Proximity Caves | Discovered exit to Research (range 13) 29385 | -3/Proximity Caves | Entered Research 29385 | -3/Research | Evolved 2 slots: Utility x2 29386 | -3/Research | Identified exit to Research 29387 | -3/Research | Loaded intel: 23 terminal locations 29585 | -3/Research | Revision forces began assault on 0b10 29632 | -3/Research | Met up with Revision 17++ 29734 | -3/Research | Lost 4 allies 30085 | -3/Research | Research terminal network offline 30449 | -3/Research | Spotted Striker 30452 | -3/Research | Destroyed Striker 30487 | -3/Research | Found Gamma Bomb Array 30618 | -3/Research | Entered another Research area 30618 | -2/Research | Warlord forces began assault on 0b10 30618 | -2/Research | Evolved 2 slots: Utility x2 30619 | -2/Research | Identified exit to Testing 30728 | -2/Research | Research machine network offline 31185 | -2/Research | Spotted Striker 31193 | -2/Research | Spotted Striker 31202 | -2/Research | Destroyed Striker 31211 | -2/Research | Destroyed Striker 31237 | -2/Research | Borebot progress halted 31256 | -2/Research | Destroyed 9 combat bots 31271 | -2/Research | Borebot progress halted 31414 | -2/Research | Found Prototype Device 31414 | -2/Research | Identified Exp. Actuator Array 31435 | -2/Research | Discovered new exit (range 16) 31459 | -2/Research | Found Prototype Device 31459 | -2/Research | Identified Exp. Thermal Defense Suite 31524 | -2/Research | Found Fusion Bomb Launcher 31553 | -2/Research | Entered Access 31553 | -1/Access | Evolved 2 slots: Utility x2 31746 | -1/Access | Build established: Golem 31783 | -1/Access | Lost 6 allies 31961 | -1/Access | Discovered new exit (range 24) 32181 | -1/Access | Remotely autohacked Sealed Barrier 32495 | *** | Escaped! Last Messages --------------- 32454_ Corrupted Lgt. Quantum Reactor crushed. 32459_ System corrupted: Energy discharge (-1554). 32470_ W-44 Eye sends out distress signal. 32472_ Discarded Asb. Focal Cannon. 32475_ P-80 Master resets H-81 Overseer, system corruption cleaned. 32475_ P-80 Master resets M-36 Artificer, system corruption cleaned. 32477_ System corrupted: Component data lost. 32477_ Destroyed Adv. Weapon Cycler. 32483_ P-80 Master resets H-81 Overseer, system corruption cleaned. 32488_ P-80 Master resets M-36 Artificer, system corruption cleaned. 32489_ Knocked back. 32491_ Vortex Cannon destroyed. 32492_ GOLEM Unit beginning Asb. Focal Cannon integration. [Achievement: On My Own Terms] Map ----- +----------------------------------------------------+ | ????????????????????????????????????????????###### | | ???????????????????????????????????????????####### | | ????????????????????????????????????????????###### | | ???????????????????????????????????????????####### | | ???????????????????????????????????????????####### | | ??????????????????????????????????????????#?###### | | ?????????????????????????????????????????? | | ?????????????????????????????????????? ## | | ??????????????????????????????????? # | | ????????????????????????????????? # | | ???????????????????????????????? + | | ????????????????????????????????#+### # | | ???????????????????????????????? ## ## ""T"" | | ?????????????????????????????? ## ## """"" | | ????????????????????????????? ## ########## | | ???????????????????????????? ########## | | ???????????????????????????? ! ########## | | ????????????????????????? ? % ########## | | ?????????????????????????######## # ######### | | ???????????????????????######### # #% ######## | | ????????????????????########## # # # % ######## | | ????????????????????" % [%%=[ ######## | | ??????????????BB????" =[! ###### ! | | ??????????????BB????" [ # #### | | ????????????????????" # ####] " | | ???????????????????"" "@ #### "" | | ???????????????????"" %"" ##### " | | ???????????????????"" ! #### | | ??????????????BB??""" [=p #### | | ??????????????BB??""" |p #### | | ???????????????????"" "" [!m! ####+### | | ??????????????????############ #####;;H!"#####=### | | ??????????????????#################### ###### ### | | ??????????????????####################% ######+### | | ?????????????????##################### #!!=*[!!*# | | ??????????????????#??#?############### # !!! # | | ??????????????????#################### / # | | ???????????????????##?################ #! """# | | ??????????????????#################### # T"# | | ??????????????????#?####?############# # """# | | ??????????????????#?################## # "" # | | ???????????????????#?################# # # | | ????????????????????################# # # | | ???????????????????################### ########## | | ??????????????????????####### # ########## | | ?????????????????????######## # # | | ????????????????????? ### # !# | | ????????????????????? # # " # # " | | ??????????????????????? ##? """ #%=# """ | | ???????????????????????? ### """ #* # """ | +----------------------------------------------------+ Best States ------------- Heat Dissipation 112 Coolant Potential 65 Energy Generation 67 Energy Capacity 4800 Matter Stores 300 Matter Capacity 300 Sight Range 22 Robot Scan Range 19 Terrain Scan Range 24 Terrain Scan Density 2010 Jamming Range 14 Power Amplification 30 Additional Mass Support 20 Armor Coverage 850 Resistance: KI 30 Resistance: TH 30 Resistance: EX 15 Resistance: EM 15 Resistance: I 15 Resistance: S 15 Resistance: P 15 Weapon Shielding 100 Phase Shifting 8 Evasion (%) 78 Targeting Accuracy 8 Core Analysis 8 Armor Integrity Analysis 50 Recoil Reduction 2 Particle Charging 25 Defensive Hacking 20 Trap Extractor Capacity 12 Item Schematics ----------------- Adv. Terrain Scan Processor | -7/Zion | Archive Enh. Optical Array | -7/Zion | Archive Arm. Huge Wheel | -7/Zion | Archive Imp. Thermal Generator | -7/Zion | Archive Microactuators | -7/Zion | Archive EM Shield | -7/Zion | Archive Adv. Assault Cannon | -7/Zion | Archive Imp. Plasma Cutter | -7/Zion | Archive Imp. Thermal Shield | -7/Zion | Archive Hrd. Heavy Armor Plating | -7/Zion | Archive Jamming Amplifier | -7/Zion | Archive Remote Datajack | -7/Zion | Archive Thermic Laser | -7/Zion | Archive Coolant Injector | -7/Zion | Archive Hyp. Gauss Rifle | -7/Zion | Archive Lrn. Phase Cannon | -7/Zion | Archive Assault Drone Bay | -4/Zhirov | Free Exp. Heat Sink | -4/Zhirov | Free Exp. Optical Array | -4/Zhirov | Free Imp. Arc Thrower | -4/Zhirov | Free Robot Schematics ------------------ P-60 Hacker | -7/Zion | Archive B-48 Gladiator | -7/Zion | Archive K-01 Serf | -7/Zion | Archive Fabricated ------------ Nothing Repaired ---------- Nothing Studied --------- Hvy. EM Pulse Gun | -8/Materials | Hacked Biometal Leg | -3/Research | Hacked Alien Tech Used ----------------- Core Expander Integrated Reactor Achievements -------------- Betrayal Most Foul Full Golem My Bad On My Own Terms Protector Challenges ------------ None Game ------ Seed LayeredOvertunedExpander Manual? 0 Play Time 05:22:54 Cumulative 370.5 hours Start 2026.01.27 @ 12:41:03 End 2026.01.28 @ 16:29:26 Sessions 15 Manual Loads 0 Difficulty Rogue Special Mode None Game No. 68 Rogue 68 Adventurer 0 Explorer 0 Win Type 0 Total 11 Types 5/1/3/1/0/0/0/1/0/0 Lore% 75 Gallery% 71 Achievement% 56 Wizard Run 0 Options --------- Layout 1 ASCII 0 Keyboard 1 Movement Vi Keybinds 1 Fullscreen 1 Font 36/Smallcaps Map View 50x40 Zoom Use 0% Tactical HUD 1 Map Filters NONE Filters NONE Steam 1 RUN: d2930e27-a93f-411a-8ba8-6b4b1d230765